bitfinex-derivatives/quotes_SOLF0:USTF0_20240816
["timestamp","ask_amount","ask_price","bid_price","bid_amount"]
[1723834113785,0.054267,139.04,139.02,0.05328592]
[1723834113985,3.5954,139.03,139.02,0.05328592]
[1723834114189,9.4354,139.03,139.02,0.05328592]
[1723834116387,47.23,139.03,138.94,2.7516]
[1723834116586,47.23,139.03,138.97,3.5967]
[1723834116793,47.23,139.03,138.9,3.53269059]
[1723834116794,41.39,138.99,138.9,3.53269059]
[1723834117096,5.84,138.98,138.9,3.53269059]
[1723834117398,41.39,138.97,138.9,3.53269059]
[1723834117687,0.0526014,138.95,138.93,0.05322219]
[1723834118582,3.5977,138.94,138.93,0.05322219]
[1723834120389,3.6502014,138.95,138.93,0.05322219]
[1723834120893,5.84,138.94,138.93,0.05322219]
[1723834121087,0.0526014,138.95,138.93,0.05322219]
[1723834121296,5.84,138.94,138.93,0.05322219]
[1723834122199,9.4377,138.94,138.93,0.05322219]
[1723834122889,5.84,138.94,138.93,0.05322219]
[1723834124090,5.84,138.94,138.93,3.65122219]
[1723834124801,0.0526014,138.95,138.93,3.65122219]
[1723834124802,0.0526014,138.95,138.94,3.5977]
[1723834124989,371.7496,139.06,138.94,42.8016]
[1723834125299,5.84,139.05,139.0,41.39]
[1723834125692,226.0,139.1,139.03,41.39]
[1723834125891,5.84,139.1,139.03,51.73]
[1723834126294,3.5939,139.09,139.05,3.5947]
[1723834126495,5.84,139.1,139.03,51.73]
[1723834126798,0.0520011,139.08,139.05,0.05327783]
[1723834126998,0.0520011,139.08,139.06,3.5946]
[1723834128611,0.0520011,139.08,139.07,3.5944]
[1723834129198,5.84,139.1,139.09,3.5938]
[1723834129401,5.84,139.1,139.07,51.73]
[1723834129402,3.61717721,139.12,139.07,51.73]
[1723834129713,5.84,139.15,139.07,51.73]
[1723834129902,3.5927,139.14,139.1,3.5934]
[1723834130607,0.04656751,139.13,139.11,0.04751761]
[1723834130801,3.5931,139.12,139.11,0.04751761]
[1723834131420,3.63946751,139.13,139.11,0.04751761]
[1723834132209,3.5931,139.12,139.11,0.04751761]
[1723834132599,51.77656751,139.13,139.11,0.04751761]
[1723834132800,3.5931,139.12,139.11,0.04751761]
[1723834134408,3.5936,139.1,139.07,3.5942]
[1723834134615,9.4136,139.1,139.07,3.5942]
[1723834135517,9.46225309,139.1,139.07,3.64295803]
[1723834135909,5.86865309,139.1,139.07,0.04875803]
[1723834136506,5.86865309,139.1,139.08,3.5941]
[1723834136819,5.86865309,139.1,139.07,0.04875803]
[1723834137214,5.86865309,139.1,139.09,3.5938]
[1723834138511,0.04865309,139.1,139.09,3.5938]
[1723834139924,0.04865309,139.1,139.09,4.8838]
[1723834141324,0.04865309,139.1,139.09,3.5938]
[1723834142212,0.04865309,139.1,139.08,4.926]
[1723834144834,0.04865309,139.1,139.09,3.5938]
[1723834146537,5.82,139.14,139.08,1.3319]
[1723834146728,5.82,139.14,139.09,42.7708]
[1723834146927,47.25,139.14,138.99,3.59899197]
[1723834147131,41.43,139.13,139.02,44.113]
[1723834147336,45.0238,139.1,139.02,44.113]
[1723834147530,0.04886919,139.07,139.06,3.5946]
[1723834148234,47.25,139.14,139.05,41.47938036]
[1723834148428,3.5929,139.13,139.05,41.47938036]
[1723834148630,3.5929,139.13,139.09,3.5937]
[1723834148835,47.25,139.14,139.09,3.5937]
[1723834149037,3.593,139.13,139.09,3.5937]
[1723834149237,0.05392979,139.12,139.1,0.05338526]
[1723834150438,3.64702979,139.12,139.1,0.05338526]
[1723834150637,0.05392979,139.12,139.1,0.05338526]
[1723834150835,41.48392979,139.12,139.1,0.05338526]
[1723834151635,3.5933,139.11,139.1,0.05338526]
[1723834151838,41.48392979,139.12,139.1,0.05338526]
[1723834152338,45.07712979,139.12,139.1,0.05338526]
[1723834152537,3.64712979,139.12,139.1,0.05338526]
[1723834153936,0.05392979,139.12,139.1,3.64698526]
[1723834154444,3.64712979,139.12,139.1,0.05338526]
[1723834154841,0.05392979,139.12,139.1,0.05338526]
[1723834155035,3.5933,139.11,139.1,0.05338526]
[1723834155236,41.48392979,139.12,139.03,1.3212]
[1723834155438,1.3316,139.13,139.06,3.5945]
[1723834155439,45.024,139.09,139.06,3.5945]
[1723834155739,5.82,139.09,139.03,1.3212]
[1723834155945,5.82,139.09,139.03,42.7512]
[1723834156141,5.82,139.09,139.08,3.5941]
[1723834156838,5.82,139.09,139.07,3.64044954]
[1723834157040,3.52260175,139.08,139.07,3.64044954]
[1723834158435,5.82,139.09,139.07,3.64044954]
[1723834159044,3.65982164,139.08,139.07,3.64044954]
[1723834159645,5.82,139.09,139.07,3.64044954]
[1723834160046,3.52176943,139.08,139.07,3.64044954]
[1723834160949,5.82,139.09,139.07,0.04624954]
[1723834161247,3.55088982,139.08,139.07,0.04624954]
[1723834161446,5.82,139.09,139.07,0.04624954]
[1723834161641,3.57066292,139.08,139.07,0.04624954]
[1723834162040,3.57066292,139.08,139.07,3.64054954]
[1723834163049,5.82,139.09,139.07,3.64054954]
[1723834163736,3.55674942,139.08,139.07,3.64054954]
[1723834164249,5.82,139.09,139.07,3.64054954]
[1723834164750,3.62109082,139.08,139.07,3.64054954]
[1723834164957,5.82,139.09,139.08,3.5941]
[1723834165142,5.82,139.13,139.07,41.47624954]
[1723834165339,5.82,139.13,139.08,2.683]
[1723834165649,3.63978218,139.14,139.08,44.113]
[1723834165854,3.5923,139.15,139.08,44.113]
[1723834166345,3.5923,139.15,139.1,0.04782828]
[1723834166346,7.23208218,139.15,139.1,0.04782828]
[1723834166553,0.05491832,139.13,139.12,3.5931]
[1723834168641,5.82,139.18,139.14,3.5926]
[1723834169040,9.4115,139.18,139.14,3.5926]
[1723834169942,0.05326002,139.17,139.15,0.04976653]
[1723834170144,3.64506002,139.17,139.15,0.04976653]
[1723834171345,3.592,139.16,139.15,0.04976653]
[1723834171651,0.05326002,139.17,139.15,0.04976653]
[1723834171838,3.64526002,139.17,139.15,0.04976653]
[1723834173944,3.592,139.16,139.15,0.04976653]
[1723834177448,45.022,139.16,139.15,0.04976653]
[1723834177656,45.022,139.16,139.03,47.23]
[1723834177657,41.43,139.16,139.03,47.23]
[1723834177948,41.43,139.12,139.06,3.5945]
[1723834178152,3.5936,139.1,139.04,3.9612]
[1723834178347,7.17011912,139.1,139.04,3.9612]
[1723834178548,3.57651912,139.1,139.08,3.5941]
[1723834178750,3.5934,139.11,139.06,0.05352628]
[1723834179055,0.04799816,139.1,139.09,3.5937]
[1723834184864,0.04799816,139.1,139.08,0.05003947]
[1723834185256,0.04799816,139.1,139.09,3.5938]
[1723834190570,0.04799816,139.1,139.08,0.05003947]
[1723834191966,0.04799816,139.1,139.09,3.5938]
[1723834193464,272.36150163,139.2,139.08,41.48003947]
[1723834193465,5.8,139.18,139.08,41.48003947]
[1723834193764,5.8,139.18,139.11,41.43]
[1723834193964,5.8,139.18,139.12,1.3124]
[1723834194559,0.05101769,139.16,139.12,1.3124]
[1723834194768,0.05101769,139.16,139.14,0.05490112]
[1723834195064,3.5923,139.15,139.14,0.05490112]
[1723834195362,45.0223,139.15,139.14,0.05490112]
[1723834198466,3.5939,139.09,139.07,2.6199]
[1723834198768,7.21502757,139.09,139.07,2.6199]
[1723834198967,3.5939,139.09,139.07,2.6199]
[1723834199161,7.15106401,139.09,139.07,2.6199]
[1723834199361,7.19799542,139.09,139.07,2.6657805]
[1723834200373,0.04693141,139.09,139.07,2.6657805]
[1723834200757,0.04693141,139.09,139.07,6.2600805]
[1723834200959,0.04693141,139.09,139.07,2.6657805]
[1723834201768,0.04693141,139.09,139.08,3.5941]
[1723834203864,7.12937109,139.13,139.09,3.5937]
[1723834204257,44.96647109,139.13,139.07,2.6657805]
[1723834204663,3.5937,139.1,139.07,2.6657805]
[1723834204967,3.64647485,139.1,139.07,2.6657805]
[1723834205870,3.5939,139.09,139.07,2.6657805]
[1723834206466,3.64647485,139.1,139.07,2.6657805]
[1723834206867,0.05277485,139.1,139.07,2.6657805]
[1723834208166,0.05277485,139.1,139.07,6.2599805]
[1723834208572,0.05277485,139.1,139.07,2.6657805]
[1723834208771,3.594,139.09,139.07,0.0458805]
[1723834210268,0.05277485,139.1,139.07,0.0458805]
[1723834210269,3.5941,139.08,139.07,0.0458805]
[1723834213061,41.43,139.08,139.01,1.3611]
[1723834213263,41.43,139.08,138.92,7.1964]
[1723834213264,41.43,139.04,138.92,5.78]
[1723834213472,5.78,139.03,138.93,45.4705]
[1723834213866,3.5959,139.01,138.93,45.4705]
[1723834214074,7.22045075,139.01,138.96,3.597]
[1723834214485,0.05515374,138.98,138.96,0.05528428]
[1723834215074,0.05515374,138.98,138.96,3.65238428]
[1723834215474,0.05515374,138.98,138.96,0.05528428]
[1723834216570,0.05515374,138.98,138.96,3.65238428]
[1723834216771,0.05515374,138.98,138.96,0.05528428]
[1723834217979,0.05515374,138.98,138.96,3.65248428]
[1723834219080,0.05515374,138.98,138.97,3.5969]
[1723834219279,0.05515374,138.98,138.96,41.48528428]
[1723834219280,0.05515374,138.98,138.96,0.05528428]
[1723834219580,0.05515374,138.98,138.96,3.65238428]
[1723834221477,0.05515374,138.98,138.96,0.05528428]
[1723834222078,3.65185374,138.98,138.96,0.05528428]
[1723834222276,0.05515374,138.98,138.96,0.05528428]
[1723834223677,3.65195374,138.98,138.96,0.05528428]
[1723834223879,0.05515374,138.98,138.96,0.05528428]
[1723834225590,3.65185374,138.98,138.96,0.05528428]
[1723834226778,0.05515374,138.98,138.96,0.05528428]
[1723834229189,3.65195374,138.98,138.96,0.05528428]
[1723834230890,0.05515374,138.98,138.96,0.05528428]
[1723834231490,0.05515374,138.98,138.97,3.5969]
[1723834235206,0.05515374,138.98,138.96,0.05528428]
[1723834235207,42.7373,139.07,138.96,41.48528428]
[1723834235498,5.78,139.04,138.98,41.43]
[1723834235886,12.97813362,139.04,139.0,3.596]
[1723834236300,0.05409839,139.03,139.01,0.05534207]
[1723834236796,3.5957,139.02,139.01,0.05534207]
[1723834240295,3.5966,138.99,138.92,41.43]
[1723834240491,41.43,138.99,138.91,1.3026]
[1723834240694,47.21,138.99,138.94,3.5975]
[1723834240895,47.21,138.99,138.91,1.3026]
[1723834241196,41.43,138.97,138.92,3.5981]
[1723834241397,3.5974,138.96,138.88,44.2265]
[1723834241592,3.65106186,138.96,138.93,0.04941]
[1723834241793,0.04622912,138.96,138.93,0.04941]
[1723834241992,0.04622912,138.96,138.93,3.64731]
[1723834242389,3.67048329,138.96,138.93,3.64731]
[1723834242899,7.26768329,138.96,138.93,0.04941]
[1723834243096,3.67048329,138.96,138.93,0.04941]
[1723834243301,41.43,138.95,138.93,0.04941]
[1723834243703,45.0276,138.95,138.93,0.04941]
[1723834243996,41.43,138.95,138.93,0.04941]
[1723834244402,45.0276,138.95,138.93,0.04941]
[1723834245297,3.5977,138.94,138.93,0.04941]
[1723834246407,3.5976,138.95,138.93,0.04941]
[1723834249707,3.5977,138.94,138.93,0.04941]
[1723834250008,3.5977,138.94,138.86,83.66195891]
[1723834250009,47.21,138.94,138.86,77.88195891]
[1723834250211,3.5985,138.91,138.88,3.5991]
[1723834251009,3.64503323,138.91,138.88,3.64846983]
[1723834251305,0.04653323,138.91,138.88,3.64846983]
[1723834251606,0.04653323,138.91,138.88,0.04936983]
[1723834252198,0.04653323,138.91,138.89,3.5989]
[1723834252401,0.04653323,138.91,138.88,0.04936983]
[1723834252816,3.5989,138.9,138.88,0.04936983]
[1723834254594,0.04653323,138.91,138.88,0.04936983]
[1723834255295,0.04653323,138.91,138.9,3.5988]
[1723834256815,5.78,138.97,138.9,41.43]
[1723834257007,5.78,138.97,138.91,41.43]
[1723834257504,50.82122732,138.97,138.87,1.3995]
[1723834257799,3.5979,138.94,138.87,1.3995]
[1723834257999,0.05265362,138.93,138.91,0.04795372]
[1723834259216,3.65065362,138.93,138.91,0.04795372]
[1723834259718,5.78,138.92,138.91,0.04795372]
[1723834261105,9.3782,138.92,138.91,0.04795372]
[1723834263011,50.8082,138.92,138.91,0.04795372]
[1723834266024,45.0289,138.9,138.87,3.5994]
[1723834266314,44.976133,138.9,138.87,3.5994]
[1723834266520,44.976133,138.9,138.86,3.5997]
[1723834267022,3.5993,138.88,138.87,0.05349623]
[1723834267945,41.47652027,138.89,138.8,1.005]
[1723834268125,41.43,138.84,138.76,2.6551]
[1723834268320,5.76,138.83,138.8,3.6012]
[1723834268621,5.76,138.83,138.76,2.6551]
[1723834269011,5.76,138.83,138.8,3.6012]
[1723834269212,0.04554519,138.81,138.8,3.6012]
[1723834269926,0.04554519,138.81,138.79,3.6015]
[1723834270219,0.04554519,138.81,138.78,0.04992495]
[1723834270412,0.04554519,138.81,138.8,3.6014]
[1723834271014,0.04554519,138.81,138.79,3.6014]
[1723834271215,0.04554519,138.81,138.78,0.04992495]
[1723834272115,0.04554519,138.81,138.79,3.6014]
[1723834272326,41.47554519,138.81,138.78,0.04992495]
[1723834272821,0.04554519,138.81,138.78,0.04992495]
[1723834273025,5.80554519,138.81,138.78,0.04992495]
[1723834273912,5.80554519,138.81,138.78,3.65162495]
[1723834275117,50.83664519,138.81,138.78,0.04992495]
[1723834275515,3.6014,138.8,138.78,0.04992495]
[1723834275718,47.23554519,138.81,138.78,0.04992495]
[1723834276227,50.83674519,138.81,138.78,0.04992495]
[1723834276418,5.80554519,138.81,138.78,0.04992495]
[1723834276922,0.04554519,138.81,138.78,0.04992495]
[1723834277320,0.04554519,138.81,138.79,3.6015]
[1723834277627,0.04554519,138.81,138.78,41.47992495]
[1723834278124,0.04554519,138.81,138.8,3.6014]
[1723834278517,3.6303947,138.84,138.82,3.6007]
[1723834278719,5.76,138.86,138.78,41.43]
[1723834279323,5.76,138.86,138.81,3.6009]
[1723834279528,41.43,138.85,138.76,42.7556]
[1723834279828,0.05386627,138.83,138.81,3.65214845]
[1723834280523,0.05386627,138.83,138.81,0.05104845]
[1723834281034,0.05386627,138.83,138.82,3.6008]
[1723834281323,3.64011801,138.85,138.81,0.05104845]
[1723834281524,5.76,138.88,138.82,41.43]
[1723834281722,5.76,138.88,138.83,1.3635]
[1723834282230,5.76,138.91,138.85,41.43]
[1723834282531,5.76,138.91,138.87,0.04597559]
[1723834282741,3.6289277,138.92,138.87,0.04597559]
[1723834283024,0.04810055,138.89,138.87,0.04597559]
[1723834283230,0.04810055,138.89,138.88,3.5993]
[1723834283822,45.028,138.93,138.88,3.5993]
[1723834284622,9.41795717,138.95,138.87,0.04597559]
[1723834284623,41.43,138.91,138.87,0.04597559]
[1723834284823,0.0455816,138.9,138.87,0.04597559]
[1723834285017,3.6444816,138.9,138.87,0.04597559]
[1723834286125,0.0455816,138.9,138.87,0.04597559]
[1723834286324,3.599,138.89,138.87,0.04597559]
[1723834287831,51.82,138.89,138.76,55.48604682]
[1723834288035,51.82,138.87,138.78,1.3544]
[1723834288331,51.82,138.85,138.78,1.3544]
[1723834288725,3.6007,138.83,138.78,1.3544]
[1723834288931,0.05374764,138.83,138.8,0.05314544]
[1723834289536,3.65444764,138.83,138.8,0.05314544]
[1723834289834,0.05374764,138.83,138.8,0.05314544]
[1723834290327,3.6009,138.82,138.8,0.05314544]
[1723834292134,3.6011,138.81,138.8,0.05314544]
[1723834297230,51.87374764,138.83,138.74,1.3444]
[1723834297430,51.82,138.8,138.74,1.3444]
[1723834297635,5.76,138.79,138.74,1.3444]
[1723834297835,9.3616,138.79,138.76,3.6022]
[1723834298242,5.76,138.79,138.74,1.3444]
[1723834298742,5.80597696,138.79,138.76,3.65603862]
[1723834299344,5.80597696,138.79,138.76,0.05383862]
[1723834300246,5.80597696,138.79,138.76,3.65603862]
[1723834300543,3.60154244,138.78,138.76,0.05383862]
[1723834300746,9.40767696,138.79,138.76,0.05383862]
[1723834301237,12.98534207,138.79,138.76,0.05383862]
[1723834302449,9.38364207,138.79,138.76,0.05383862]
[1723834302844,9.38364207,138.79,138.76,3.65623862]
[1723834304741,9.38364207,138.79,138.76,0.05383862]
[1723834305343,3.62364207,138.79,138.76,0.05383862]
[1723834305857,0.04597696,138.79,138.78,3.6019]
[1723834306158,0.04597696,138.79,138.76,0.05383862]
[1723834306360,0.04597696,138.79,138.76,3.65613862]
[1723834306846,0.04597696,138.79,138.77,3.6021]
[1723834307962,0.04597696,138.79,138.76,3.65613862]
[1723834309344,41.54597696,138.79,138.76,0.05383862]
[1723834309546,0.04597696,138.79,138.76,0.05383862]
[1723834309746,0.04597696,138.79,138.76,3.65603862]
[1723834309944,0.04597696,138.79,138.76,0.05383862]
[1723834310353,0.04597696,138.79,138.77,3.6021]
[1723834310653,0.04597696,138.79,138.76,0.05383862]
[1723834312056,0.04597696,138.79,138.78,3.6019]
[1723834320561,41.5,138.87,138.81,3.6008]
[1723834320756,41.5,138.87,138.76,45.58723862]
[1723834320757,5.76,138.85,138.76,45.58723862]
[1723834320959,3.52261175,138.84,138.76,45.58723862]
[1723834321255,3.52261175,138.84,138.76,45.5334]
[1723834321961,0.05511159,138.81,138.79,0.0480376]
[1723834322465,0.05511159,138.81,138.8,3.6014]
[1723834323861,0.05511159,138.81,138.79,0.0480376]
[1723834324261,3.6014,138.8,138.79,0.0480376]
[1723834324757,3.6014,138.8,138.75,1.005]
[1723834324758,47.26,138.8,138.75,1.005]
[1723834324966,41.5,138.78,138.75,4.6076]
[1723834325169,3.65353944,138.77,138.75,4.6076]
[1723834325365,41.5,138.78,138.75,4.6076]
[1723834325565,3.59268312,138.77,138.75,4.6076]
[1723834325767,3.59268312,138.77,138.75,4.66267444]
[1723834326267,41.5,138.76,138.75,1.06007444]
[1723834326458,41.5,138.76,138.7,1.3042]
[1723834326660,41.5,138.74,138.7,1.3042]
[1723834326968,5.76,138.75,138.7,1.3042]
[1723834327262,45.1032,138.74,138.7,1.3042]
[1723834327465,45.1032,138.74,138.69,4.6091]
[1723834327669,0.05107306,138.73,138.71,0.04759511]
[1723834328762,3.65447306,138.73,138.71,0.04759511]
[1723834329160,41.5,138.72,138.69,1.005]
[1723834329362,45.1039,138.7,138.69,1.005]
[1723834329568,50.8439,138.7,138.69,1.005]
[1723834330363,47.24,138.7,138.64,1.005]
[1723834330569,41.5,138.66,138.64,1.005]
[1723834330761,5.74,138.65,138.64,1.005]
[1723834331470,9.3452,138.65,138.64,1.005]
[1723834333161,5.74,138.65,138.64,1.005]
[1723834333661,3.62875603,138.66,138.64,1.005]
[1723834333864,5.74,138.65,138.64,1.005]
[1723834334265,5.74,138.65,138.64,4.6105]
[1723834334567,0.05021071,138.66,138.64,1.005]
[1723834334773,0.05021071,138.66,138.65,3.6052]
[1723834335164,5.74,138.69,138.65,41.5]
[1723834335360,45.1022,138.77,138.67,41.5]
[1723834335570,41.5,138.77,138.68,1.2854]
[1723834336167,41.5,138.75,138.68,1.2854]
[1723834336667,0.04970776,138.74,138.71,0.05378023]
[1723834336873,3.58551548,138.74,138.71,0.05378023]
[1723834337072,0.04970776,138.74,138.73,3.6032]
[1723834337476,3.64353863,138.74,138.73,3.6032]
[1723834337772,0.04970776,138.74,138.73,3.6032]
[1723834338273,3.6583147,138.74,138.73,3.6032]
[1723834338672,5.74,138.78,138.75,3.6025]
[1723834338875,55.5014,138.8,138.75,3.6025]
[1723834339166,3.6017,138.79,138.75,3.6025]
[1723834339369,55.51581479,138.8,138.75,3.6025]
[1723834339774,0.05398655,138.79,138.76,0.05330208]
[1723834340261,3.65558655,138.79,138.76,0.05330208]
[1723834340875,3.6019,138.78,138.76,0.05330208]
[1723834341574,3.65568655,138.79,138.76,0.05330208]
[1723834342475,0.05398655,138.79,138.76,0.05330208]
[1723834342981,0.05398655,138.79,138.76,3.65560208]
[1723834343279,0.05398655,138.79,138.76,0.05330208]
[1723834343478,0.05398655,138.79,138.77,3.602]
[1723834343867,0.05398655,138.79,138.76,0.05330208]
[1723834344074,0.05398655,138.79,138.77,3.6021]
[1723834344276,0.05398655,138.79,138.76,0.05330208]
[1723834344681,0.05398655,138.79,138.76,3.65550208]
[1723834344880,51.9,138.77,138.59,11.8252]
[1723834345179,55.5028,138.75,138.71,3.6035]
[1723834345681,51.9,138.75,138.68,1.4182]
[1723834345886,51.9,138.75,138.72,3.6033]
[1723834346087,0.04694665,138.73,138.72,3.6033]
[1723834346275,0.04694665,138.73,138.7,0.04803635]
[1723834348381,3.61339135,138.73,138.7,0.04803635]
[1723834348686,0.04694665,138.73,138.7,0.04803635]
[1723834348876,3.56222078,138.73,138.7,0.04803635]
[1723834349072,0.04694665,138.73,138.7,0.04803635]
[1723834349273,3.6036,138.72,138.7,0.04803635]
[1723834349473,3.53293158,138.71,138.7,0.04803635]
[1723834350573,9.3435,138.72,138.7,0.04803635]
[1723834350776,3.68949776,138.71,138.7,0.04803635]
[1723834350986,9.3435,138.72,138.7,0.04803635]
[1723834351583,5.74,138.72,138.7,0.04803635]
[1723834351779,0.04694665,138.73,138.7,0.04803635]
[1723834352284,0.04694665,138.73,138.71,3.6037]
[1723834352484,0.04694665,138.73,138.7,0.04803635]
[1723834352781,0.04694665,138.73,138.7,3.65183635]
[1723834352989,0.04694665,138.73,138.7,0.04803635]
[1723834354798,0.04694665,138.73,138.72,3.6034]
[1723834355688,3.67635497,138.73,138.7,0.04803635]
[1723834355893,0.04694665,138.73,138.7,0.04803635]
[1723834356195,3.58322685,138.73,138.7,0.04803635]
[1723834356393,0.04694665,138.73,138.7,0.04803635]
[1723834356901,0.04694665,138.73,138.71,3.6036]
[1723834357191,3.58610949,138.73,138.7,0.04803635]
[1723834357394,0.04694665,138.73,138.7,0.04803635]
[1723834357800,3.65024665,138.73,138.7,0.04803635]
[1723834358187,7.28201434,138.73,138.7,0.04803635]
[1723834358703,3.6035,138.72,138.7,0.04803635]
[1723834358892,3.67871434,138.73,138.7,0.04803635]
[1723834359595,0.04694665,138.73,138.7,0.04803635]
[1723834360388,0.04694665,138.73,138.71,3.6035]
[1723834361193,0.04694665,138.73,138.72,3.6034]
[1723834361800,0.04694665,138.73,138.71,3.6036]
[1723834363193,3.56186042,138.73,138.7,3.65183635]
[1723834363384,3.56186042,138.73,138.7,0.04803635]
[1723834363385,0.04694665,138.73,138.7,0.04803635]
[1723834363589,3.71933605,138.73,138.7,0.04803635]
[1723834364793,7.32263605,138.73,138.7,0.04803635]
[1723834365802,0.04694665,138.73,138.7,3.65183635]
[1723834366502,0.04694665,138.73,138.71,3.6035]
[1723834367001,0.04694665,138.73,138.72,3.6034]
[1723834368303,3.61581479,138.8,138.75,3.6026]
[1723834368503,9.33581479,138.8,138.71,53.2793]
[1723834368691,9.3215,138.8,138.71,53.2793]
[1723834369199,12.94337692,138.8,138.76,3.6022]
[1723834369592,0.04913895,138.79,138.77,0.05062672]
[1723834369800,0.04913895,138.79,138.77,3.65272672]
[1723834370905,3.65083895,138.79,138.77,0.05062672]
[1723834371702,3.6019,138.78,138.77,0.05062672]
[1723834372207,3.65083895,138.79,138.77,0.05062672]
[1723834372899,0.04913895,138.79,138.77,0.05062672]
[1723834373498,3.65073895,138.79,138.77,0.05062672]
[1723834373814,0.04913895,138.79,138.77,0.05062672]
[1723834373999,3.6019,138.78,138.77,0.05062672]
[1723834374616,3.65083895,138.79,138.77,0.05062672]
[1723834377108,0.04913895,138.79,138.77,0.05062672]
[1723834378108,45.1219,138.78,138.77,0.05062672]
[1723834378410,0.04913895,138.79,138.66,66.20739202]
[1723834378608,41.52,138.76,138.67,2.8057]
[1723834378796,5.72,138.75,138.67,2.8057]
[1723834379002,3.59711873,138.74,138.67,2.8057]
[1723834379500,0.04850714,138.72,138.69,0.05147007]
[1723834379995,5.76850714,138.72,138.69,0.05147007]
[1723834380201,0.04850714,138.72,138.69,0.05147007]
[1723834380804,0.04850714,138.72,138.71,3.6037]
[1723834381002,5.72,138.75,138.69,0.05147007]
[1723834381408,9.3228,138.75,138.71,3.6036]
[1723834381805,5.72,138.75,138.72,3.6034]
[1723834382005,5.77526505,138.75,138.72,3.65421788]
[1723834382216,0.05526505,138.75,138.72,0.05081788]
[1723834382508,0.05526505,138.75,138.73,3.6032]
[1723834383015,0.05526505,138.75,138.74,3.6029]
[1723834383222,5.72,138.78,138.72,0.05081788]
[1723834383519,5.72,138.81,138.72,51.93]
[1723834383700,5.72,138.81,138.73,2.757]
[1723834383904,5.72,138.86,138.76,51.93]
[1723834384110,3.6002,138.85,138.76,51.93]
[1723834384307,32.38865881,138.88,138.79,51.93]
[1723834384512,5.72,138.87,138.8,1.3498]
[1723834384716,0.05333493,138.82,138.81,3.6011]
[1723834385517,5.72,138.87,138.83,3.6006]
[1723834385717,5.72,138.87,138.8,2.757]
[1723834385918,0.04636962,138.83,138.8,2.80536159]
[1723834388119,0.04636962,138.83,138.82,3.6008]
[1723834392030,5.72,138.87,138.81,1.3383]
[1723834392235,337.10036664,139.7,138.86,51.93]
[1723834392236,3.60188698,138.95,138.86,51.93]
[1723834392423,3.082,138.98,138.89,51.93]
[1723834392718,2.6779,138.98,138.89,51.93]
[1723834392924,11.80717085,139.09,138.87,5.72]
[1723834392925,51.93,139.01,138.91,51.93]
[1723834393122,3.66562126,139.0,138.92,5.72]
[1723834393429,55.5261,139.01,138.92,5.72]
[1723834393430,0.04650827,138.97,138.96,3.5971]
[1723834393827,55.5261,139.01,138.96,3.5971]
[1723834394134,0.04968513,138.98,138.97,3.5969]
[1723834394534,3.5957,139.02,138.97,3.5969]
[1723834394723,0.04776644,138.99,138.97,3.5969]
[1723834395033,0.04776644,138.99,138.96,3.64388961]
[1723834396432,0.04776644,138.99,138.96,0.04678961]
[1723834397236,0.04776644,138.99,138.97,3.5969]
[1723834397538,0.04776644,138.99,138.96,0.04678961]
[1723834397739,0.04776644,138.99,138.96,5.74678961]
[1723834398536,0.04776644,138.99,138.98,3.5967]
[1723834398739,0.4041,139.07,138.96,5.74678961]
[1723834398740,1.306,139.07,138.97,55.45333819]
[1723834398931,1.306,139.07,138.97,56.85873819]
[1723834399135,1.306,139.07,139.02,3.5955]
[1723834399334,3.5947,139.06,139.02,3.5955]
[1723834399639,1.306,139.07,139.03,3.5954]
[1723834399840,0.04834836,139.06,139.04,0.04918537]
[1723834400142,0.04834836,139.06,139.04,3.64428537]
[1723834400933,0.04834836,139.06,139.04,0.04918537]
[1723834401339,0.04834836,139.06,139.04,3.64428537]
[1723834402337,0.04834836,139.06,139.04,0.04918537]
[1723834402543,3.64314836,139.06,139.04,0.04918537]
[1723834403445,0.04834836,139.06,139.04,0.04918537]
[1723834403840,0.04834836,139.06,139.04,3.64408537]
[1723834404041,0.04834836,139.06,139.04,0.04918537]
[1723834404442,0.04834836,139.06,139.05,3.5949]
[1723834405743,1.0,139.09,139.08,3.5941]